[Event "Live Chess"]
[Site "Chess.com"]
[Date "2023.05.20"]
[Round "-"]
[White "laminaaprod"]
[Black "Olisingapore"]
[Result "1-0"]
[WhiteElo "2248"]
[BlackElo "1850"]
[TimeControl "300"]
[EndTime "15:40:05 PDT"]
[Termination "laminaaprod won by checkmate"]

1. d4 {[%clk 0:04:54.3]} 1... Nf6 {[%clk 0:04:58.2]} 2. c4 {[%clk 0:04:49.5]}
2... e6 {[%clk 0:04:57.1]} 3. Nf3 {[%clk 0:04:45.9]} 3... d5 {[%clk 0:04:56.1]}
4. g3 {[%clk 0:04:44.4]} 4... c5 {[%clk 0:04:55.4]} 5. cxd5 {[%clk 0:04:43.2]}
5... exd5 {[%clk 0:04:54]} 6. Bg2 {[%clk 0:04:42]} 6... Be6 {[%clk 0:04:52.1]}
7. O-O {[%clk 0:04:40.7]} 7... Be7 {[%clk 0:04:51.2]} 8. dxc5 {[%clk 0:04:38.1]}
8... Bxc5 {[%clk 0:04:49.9]} 9. b3 {[%clk 0:04:37.6]} 9... Nc6 {[%clk
0:04:47.7]} 10. Bb2 {[%clk 0:04:30.5]} 10... O-O {[%clk 0:04:46.6]} 11. Nc3
{[%clk 0:04:28.4]} 11... a6 {[%clk 0:04:41.6]} 12. Rc1 {[%clk 0:04:26.6]} 12...
d4 {[%clk 0:04:31.1]} 13. Na4 {[%clk 0:04:20.9]} 13... Ba7 {[%clk 0:04:22.5]}
14. Nc5 {[%clk 0:04:16.6]} 14... Bxc5 {[%clk 0:04:18.8]} 15. Rxc5 {[%clk
0:04:15.1]} 15... Qd6 {[%clk 0:04:18.2]} 16. Qc1 {[%clk 0:04:07.4]} 16... Ne4
{[%clk 0:04:16.9]} 17. Rc2 {[%clk 0:03:59.6]} 17... Nb4 {[%clk 0:04:02.9]} 18.
Ba3 {[%clk 0:03:53.7]} 18... Rac8 {[%clk 0:03:56.6]} 19. Rxc8 {[%clk 0:02:56]}
19... Rxc8 {[%clk 0:03:48.5]} 20. Qf4 {[%clk 0:02:53.4]} 20... Qxf4 {[%clk
0:03:41.6]} 21. gxf4 {[%clk 0:02:50.5]} 21... Nc2 {[%clk 0:03:38.6]} 22. Bb2
{[%clk 0:02:40.5]} 22... Nc3 {[%clk 0:03:18.4]} 23. Bxc3 {[%clk 0:02:39.5]}
23... dxc3 {[%clk 0:03:17.2]} 24. Rc1 {[%clk 0:02:39.1]} 24... Nb4 {[%clk
0:03:16.4]} 25. a3 {[%clk 0:02:34]} 25... Nd5 {[%clk 0:03:07.7]} 26. e3 {[%clk
0:02:22.9]} 26... Nf6 {[%clk 0:02:58.7]} 27. Nd4 {[%clk 0:02:19.8]} 27... Bd5
{[%clk 0:02:51.7]} 28. Bxd5 {[%clk 0:02:12.6]} 28... Nxd5 {[%clk 0:02:50.3]} 29.
Kf1 {[%clk 0:02:12.5]} 29... Nf6 {[%clk 0:02:40.5]} 30. Ke2 {[%clk 0:02:06.4]}
30... g6 {[%clk 0:02:34.9]} 31. Kd3 {[%clk 0:02:04.5]} 31... Ng4 {[%clk
0:02:31.3]} 32. Ke2 {[%clk 0:01:52.1]} 32... Nxh2 {[%clk 0:02:26.2]} 33. f3
{[%clk 0:01:51.3]} 33... g5 {[%clk 0:02:22.5]} 34. fxg5 {[%clk 0:01:46.6]} 34...
Kg7 {[%clk 0:02:21.4]} 35. Kf2 {[%clk 0:01:42.9]} 35... Kg6 {[%clk 0:02:20.9]}
36. Kg2 {[%clk 0:01:41.7]} 36... Nxf3 {[%clk 0:02:18.7]} 37. Kxf3 {[%clk
0:01:38.6]} 37... Kxg5 {[%clk 0:02:14.1]} 38. Ne2 {[%clk 0:01:38]} 38... f5
{[%clk 0:02:10.7]} 39. Rxc3 {[%clk 0:01:34.9]} 39... Rxc3 {[%clk 0:02:08.8]} 40.
Nxc3 {[%clk 0:01:34.2]} 40... h5 {[%clk 0:02:06.8]} 41. Ne2 {[%clk 0:01:25.8]}
41... h4 {[%clk 0:01:53.4]} 42. Nf4 {[%clk 0:01:24.1]} 42... b5 {[%clk
0:01:48.3]} 43. b4 {[%clk 0:01:22.3]} 43... Kf6 {[%clk 0:01:44.9]} 44. Kg2
{[%clk 0:00:53.7]} 44... Ke5 {[%clk 0:01:42]} 45. Kh3 {[%clk 0:00:53.6]} 45...
Ke4 {[%clk 0:01:41.5]} 46. Ng2 {[%clk 0:00:52.9]} 46... f4 {[%clk 0:01:35.3]}
47. exf4 {[%clk 0:00:51.3]} 47... Kf5 {[%clk 0:01:33.8]} 48. Kxh4 {[%clk
0:00:50.6]} 48... Kf6 {[%clk 0:01:32.7]} 49. Kg4 {[%clk 0:00:49.8]} 49... Ke6
{[%clk 0:01:32]} 50. f5+ {[%clk 0:00:49.3]} 50... Kf6 {[%clk 0:01:31.6]} 51. Kf4
{[%clk 0:00:48.7]} 51... Kf7 {[%clk 0:01:30.9]} 52. Ke5 {[%clk 0:00:48.2]} 52...
Ke7 {[%clk 0:01:30.2]} 53. f6+ {[%clk 0:00:48.1]} 53... Kf7 {[%clk 0:01:29.8]}
54. Kf5 {[%clk 0:00:48]} 54... Kf8 {[%clk 0:01:29.1]} 55. Ke6 {[%clk 0:00:47.9]}
55... Ke8 {[%clk 0:01:28.4]} 56. f7+ {[%clk 0:00:46.5]} 56... Kf8 {[%clk
0:01:28]} 57. Ne3 {[%clk 0:00:46.2]} 57... a5 {[%clk 0:01:27.5]} 58. bxa5 {[%clk
0:00:45.5]} 58... b4 {[%clk 0:01:26.7]} 59. axb4 {[%clk 0:00:45.4]} 59... Kg7
{[%clk 0:01:24.5]} 60. Ke7 {[%clk 0:00:45]} 60... Kg6 {[%clk 0:01:22.1]} 61.
f8=Q {[%clk 0:00:44.9]} 61... Kg5 {[%clk 0:01:21.7]} 62. Nc4 {[%clk 0:00:44.6]}
62... Kh4 {[%clk 0:01:21.5]} 63. a6 {[%clk 0:00:44.5]} 63... Kg3 {[%clk
0:01:21.1]} 64. a7 {[%clk 0:00:44.4]} 64... Kg2 {[%clk 0:01:20.6]} 65. a8=Q+
{[%clk 0:00:44.3]} 65... Kg3 {[%clk 0:01:20.2]} 66. Qae8 {[%clk 0:00:44.2]}
66... Kg2 {[%clk 0:01:19.5]} 67. Qef7 {[%clk 0:00:44.1]} 67... Kg3 {[%clk
0:01:18.4]} 68. Q8g8+ {[%clk 0:00:44]} 68... Kh3 {[%clk 0:01:18.1]} 69. Qfh7#
{[%clk 0:00:43.9]} 1-0

[Event "Live Chess"]
[Site "Chess.com"]
[Date "2023.05.20"]
[Round "-"]
[White "Tushinskiy"]
[Black "xx_blindpuffin_xx"]
[Result "1-0"]
[WhiteElo "2164"]
[BlackElo "2203"]
[TimeControl "300"]
[EndTime "15:40:16 PDT"]
[Termination "Tushinskiy won by checkmate"]

1. d4 {[%clk 0:04:58.3]} 1... e6 {[%clk 0:04:56]} 2. c3 {[%clk 0:04:58.2]} 2...
f5 {[%clk 0:04:54.8]} 3. Nf3 {[%clk 0:04:50.7]} 3... Nf6 {[%clk 0:04:53.7]} 4.
Bg5 {[%clk 0:04:50]} 4... Be7 {[%clk 0:04:51.1]} 5. Nbd2 {[%clk 0:04:48.5]} 5...
O-O {[%clk 0:04:49.4]} 6. Bxf6 {[%clk 0:04:47.2]} 6... Bxf6 {[%clk 0:04:48]} 7.
e4 {[%clk 0:04:47.1]} 7... fxe4 {[%clk 0:04:47.1]} 8. Nxe4 {[%clk 0:04:46.1]}
8... b6 {[%clk 0:04:42.7]} 9. Bd3 {[%clk 0:04:45.1]} 9... Bb7 {[%clk 0:04:41.3]}
10. Qe2 {[%clk 0:04:44.3]} 10... Nc6 {[%clk 0:04:25.9]} 11. O-O-O {[%clk
0:04:43.2]} 11... Ne7 {[%clk 0:03:53.5]} 12. h4 {[%clk 0:04:39]} 12... Nd5
{[%clk 0:03:49.1]} 13. Bc2 {[%clk 0:04:33.2]} 13... a6 {[%clk 0:03:11.2]} 14.
Nfg5 {[%clk 0:04:19]} 14... g6 {[%clk 0:02:21.8]} 15. g3 {[%clk 0:04:12.7]}
15... b5 {[%clk 0:02:14.1]} 16. f4 {[%clk 0:04:08.7]} 16... b4 {[%clk 0:02:06]}
17. c4 {[%clk 0:04:07.5]} 17... Nb6 {[%clk 0:02:04.4]} 18. h5 {[%clk 0:03:50]}
18... Bxg5 {[%clk 0:01:59.7]} 19. Nxg5 {[%clk 0:03:44.8]} 19... Bxh1 {[%clk
0:01:56.5]} 20. Rxh1 {[%clk 0:03:44.7]} 20... Qf6 {[%clk 0:01:32.7]} 21. hxg6
{[%clk 0:03:20.3]} 21... hxg6 {[%clk 0:01:31.3]} 22. Rh6 {[%clk 0:03:18.8]}
22... Kg7 {[%clk 0:01:27.5]} 23. Rxg6+ {[%clk 0:03:07.7]} 23... Qxg6 {[%clk
0:01:27.4]} 24. Bxg6 {[%clk 0:03:07.2]} 24... Kxg6 {[%clk 0:01:27.3]} 25. Qe4+
{[%clk 0:03:03.6]} 25... Kh5 {[%clk 0:01:19.7]} 26. b3 {[%clk 0:03:00.9]} 26...
Rae8 {[%clk 0:01:15.5]} 27. Kd2 {[%clk 0:02:55.9]} 27... d5 {[%clk 0:01:12.8]}
28. Qh7+ {[%clk 0:02:54.9]} 28... Kg4 {[%clk 0:01:11]} 29. Qh3# {[%clk
0:02:52.1]} 1-0

[Event "Live Chess"]
[Site "Chess.com"]
[Date "2023.05.20"]
[Round "-"]
[White "Doge_Dandolo"]
[Black "LiamBellwood"]
[Result "0-1"]
[WhiteElo "2024"]
[BlackElo "2082"]
[TimeControl "300"]
[EndTime "15:40:20 PDT"]
[Termination "LiamBellwood won by checkmate"]

1. Nf3 {[%clk 0:04:58.4]} 1... e6 {[%clk 0:04:59.9]} 2. c4 {[%clk 0:04:56.9]}
2... f5 {[%clk 0:04:54.9]} 3. d3 {[%clk 0:04:55.5]} 3... Nf6 {[%clk 0:04:54.5]}
4. g3 {[%clk 0:04:54.6]} 4... Be7 {[%clk 0:04:51.9]} 5. Bg2 {[%clk 0:04:53.7]}
5... O-O {[%clk 0:04:51.5]} 6. O-O {[%clk 0:04:52.7]} 6... d6 {[%clk 0:04:51.4]}
7. Nc3 {[%clk 0:04:51.7]} 7... e5 {[%clk 0:04:50]} 8. Bg5 {[%clk 0:04:49.5]}
8... Nc6 {[%clk 0:04:45.6]} 9. Bxf6 {[%clk 0:04:47.2]} 9... Bxf6 {[%clk
0:04:41.7]} 10. Nd5 {[%clk 0:04:46.5]} 10... Be6 {[%clk 0:04:39.5]} 11. Ne1
{[%clk 0:04:43.9]} 11... a5 {[%clk 0:04:33.1]} 12. Nc2 {[%clk 0:04:42.4]} 12...
f4 {[%clk 0:04:18.3]} 13. Rb1 {[%clk 0:04:39.6]} 13... Rc8 {[%clk 0:04:04.3]}
14. b3 {[%clk 0:04:29.8]} 14... Qe8 {[%clk 0:04:01.5]} 15. a3 {[%clk 0:04:29]}
15... Qh5 {[%clk 0:03:50.3]} 16. b4 {[%clk 0:04:27.2]} 16... axb4 {[%clk
0:03:48.1]} 17. Ncxb4 {[%clk 0:04:25.4]} 17... Nd4 {[%clk 0:03:42.5]} 18. e3
{[%clk 0:04:19.8]} 18... Ne2+ {[%clk 0:03:24.1]} 19. Kh1 {[%clk 0:04:17.1]}
19... f3 {[%clk 0:03:23.5]} 20. Bxf3 {[%clk 0:04:11.7]} 20... Qxf3# {[%clk
0:03:23.4]} 0-1

[Event "Live Chess"]
[Site "Chess.com"]
[Date "2023.05.20"]
[Round "-"]
[White "Biranidun"]
[Black "Lewstar1"]
[Result "1-0"]
[WhiteElo "2726"]
[BlackElo "443"]
[TimeControl "300"]
[EndTime "15:40:23 PDT"]
[Termination "Biranidun won by checkmate"]

1. e4 {[%clk 0:04:59.1]} 1... d6 {[%clk 0:04:50.4]} 2. d4 {[%clk 0:04:58.1]}
2... Nf6 {[%clk 0:04:50.3]} 3. Nc3 {[%clk 0:04:57.2]} 3... g6 {[%clk 0:04:50.2]}
4. f4 {[%clk 0:04:56.7]} 4... Bg7 {[%clk 0:04:49.2]} 5. Bd3 {[%clk 0:04:56.4]}
5... O-O {[%clk 0:04:48.4]} 6. Nf3 {[%clk 0:04:56]} 6... c5 {[%clk 0:04:47.4]}
7. dxc5 {[%clk 0:04:55.1]} 7... dxc5 {[%clk 0:04:47.3]} 8. e5 {[%clk 0:04:55]}
8... Ng4 {[%clk 0:04:43.5]} 9. h3 {[%clk 0:04:52.9]} 9... Nh6 {[%clk 0:04:40.2]}
10. Be3 {[%clk 0:04:52.5]} 10... b6 {[%clk 0:04:37.5]} 11. Be4 {[%clk
0:04:51.6]} 11... Qxd1+ {[%clk 0:04:21.8]} 12. Rxd1 {[%clk 0:04:51.5]} 12... Bf5
{[%clk 0:04:06]} 13. Bxa8 {[%clk 0:04:50.1]} 13... Bxc2 {[%clk 0:04:05.9]} 14.
Rd2 {[%clk 0:04:48.8]} 14... Bf5 {[%clk 0:03:52.9]} 15. g4 {[%clk 0:04:48.1]}
15... Be6 {[%clk 0:03:46.7]} 16. Nd5 {[%clk 0:04:46.5]} 16... Bxd5 {[%clk
0:03:42.6]} 17. Bxd5 {[%clk 0:04:46.4]} 17... Rd8 {[%clk 0:03:33.6]} 18. f5
{[%clk 0:04:43.7]} 18... gxf5 {[%clk 0:03:30]} 19. g5 {[%clk 0:04:42.7]} 19...
e6 {[%clk 0:03:21.1]} 20. gxh6 {[%clk 0:04:40.1]} 20... Bxh6 {[%clk 0:03:11.3]}
21. Bxh6 {[%clk 0:04:38.4]} 21... Rxd5 {[%clk 0:03:08]} 22. Rg1+ {[%clk
0:04:38.3]} 22... Kh8 {[%clk 0:03:06.7]} 23. Rdg2 {[%clk 0:04:35.8]} 23... Rd8
{[%clk 0:03:02.3]} 24. Ng5 {[%clk 0:04:29.2]} 24... Rf8 {[%clk 0:02:47.8]} 25.
Nxf7+ {[%clk 0:04:28]} 25... Rxf7 {[%clk 0:02:47.7]} 26. Rg8# {[%clk 0:04:27.3]}
1-0

[Event "Live Chess"]
[Site "Chess.com"]
[Date "2023.05.20"]
[Round "-"]
[White "LL220284LL"]
[Black "JoshMcK"]
[Result "1-0"]
[WhiteElo "2399"]
[BlackElo "1533"]
[TimeControl "300"]
[EndTime "15:40:26 PDT"]
[Termination "LL220284LL won by resignation"]

1. Nf3 {[%clk 0:04:58.9]} 1... Nf6 {[%clk 0:04:56.5]} 2. c4 {[%clk 0:04:56.9]}
2... g6 {[%clk 0:04:54.6]} 3. g3 {[%clk 0:04:55.7]} 3... Bg7 {[%clk 0:04:53.7]}
4. Bg2 {[%clk 0:04:54.4]} 4... O-O {[%clk 0:04:52.7]} 5. O-O {[%clk 0:04:52.5]}
5... d6 {[%clk 0:04:49]} 6. Nc3 {[%clk 0:04:50.8]} 6... Nc6 {[%clk 0:04:44.9]}
7. d4 {[%clk 0:04:49.2]} 7... a6 {[%clk 0:04:32.8]} 8. Re1 {[%clk 0:04:13.6]}
8... e5 {[%clk 0:04:26.1]} 9. e4 {[%clk 0:04:08.2]} 9... exd4 {[%clk 0:04:20.9]}
10. Nxd4 {[%clk 0:04:06.6]} 10... Nxd4 {[%clk 0:04:19.6]} 11. Qxd4 {[%clk
0:04:05.5]} 11... Ng4 {[%clk 0:04:12.2]} 12. Qd2 {[%clk 0:03:58.5]} 12... Be6
{[%clk 0:04:05.7]} 13. Qe2 {[%clk 0:03:53]} 13... Ne5 {[%clk 0:04:02.2]} 14. Nd5
{[%clk 0:03:40.1]} 14... c6 {[%clk 0:03:57.2]} 15. Ne3 {[%clk 0:03:38]} 15...
Rb8 {[%clk 0:03:42.7]} 16. f4 {[%clk 0:03:34]} 16... Nd7 {[%clk 0:03:38.6]} 17.
f5 {[%clk 0:03:32.2]} 17... gxf5 {[%clk 0:03:37.5]} 18. exf5 {[%clk 0:03:32.1]}
18... Bxf5 {[%clk 0:03:14.8]} 19. Nxf5 {[%clk 0:03:30]} 19... Re8 {[%clk
0:03:14.7]} 20. Qxe8+ {[%clk 0:03:28]} 20... Qxe8 {[%clk 0:03:14.6]} 21. Rxe8+
{[%clk 0:03:27.2]} 21... Rxe8 {[%clk 0:03:14.5]} 22. Bf4 {[%clk 0:03:24.3]}
22... Bd4+ {[%clk 0:03:12.8]} 23. Nxd4 {[%clk 0:03:21]} 1-0

[Event "Live Chess"]
[Site "Chess.com"]
[Date "2023.05.20"]
[Round "-"]
[White "Brooms1989"]
[Black "jennybobby44"]
[Result "0-1"]
[WhiteElo "1079"]
[BlackElo "1846"]
[TimeControl "300"]
[EndTime "15:40:36 PDT"]
[Termination "jennybobby44 won by resignation"]

1. e4 {[%clk 0:04:56.7]} 1... c5 {[%clk 0:04:58.2]} 2. Nc3 {[%clk 0:04:50.9]}
2... g6 {[%clk 0:04:57]} 3. f4 {[%clk 0:04:42.4]} 3... Bg7 {[%clk 0:04:56.2]} 4.
Nf3 {[%clk 0:04:40.8]} 4... d6 {[%clk 0:04:55.4]} 5. Bb5+ {[%clk 0:04:37.7]}
5... Bd7 {[%clk 0:04:54.5]} 6. Bxd7+ {[%clk 0:04:36]} 6... Nxd7 {[%clk
0:04:53.1]} 7. O-O {[%clk 0:04:35.6]} 7... e6 {[%clk 0:04:52.3]} 8. d3 {[%clk
0:04:35]} 8... Ngf6 {[%clk 0:04:51.1]} 9. h3 {[%clk 0:04:31.7]} 9... O-O {[%clk
0:04:50]} 10. Qe1 {[%clk 0:04:25.1]} 10... Rb8 {[%clk 0:04:47.7]} 11. Nb5 {[%clk
0:04:09.3]} 11... Qb6 {[%clk 0:04:42.9]} 12. c4 {[%clk 0:03:59.7]} 12... a6
{[%clk 0:04:40.8]} 13. Nc3 {[%clk 0:03:59.1]} 13... Qc7 {[%clk 0:04:37.7]} 14.
Ne2 {[%clk 0:03:36.1]} 14... b5 {[%clk 0:04:35]} 15. cxb5 {[%clk 0:03:28.2]}
15... Rxb5 {[%clk 0:04:30.4]} 16. b3 {[%clk 0:03:25.8]} 16... Nxe4 {[%clk
0:04:25.2]} 17. Rb1 {[%clk 0:03:03.5]} 17... Nef6 {[%clk 0:04:24]} 18. a4 {[%clk
0:02:59.6]} 18... Rbb8 {[%clk 0:04:20.7]} 19. Bb2 {[%clk 0:02:57]} 19... Nd5
{[%clk 0:04:08.9]} 20. Bxg7 {[%clk 0:02:47.6]} 20... Kxg7 {[%clk 0:04:08.8]} 21.
Nc3 {[%clk 0:02:33.8]} 21... N7f6 {[%clk 0:03:59.5]} 22. Nxd5 {[%clk 0:02:15.2]}
22... Nxd5 {[%clk 0:03:58.1]} 23. Nh2 {[%clk 0:02:07.5]} 23... Rb4 {[%clk
0:03:47]} 24. Qd2 {[%clk 0:02:01.8]} 24... Rfb8 {[%clk 0:03:43.2]} 25. Rfc1
{[%clk 0:01:57.4]} 25... Rxb3 {[%clk 0:03:39]} 26. Rxb3 {[%clk 0:01:52.1]} 26...
Rxb3 {[%clk 0:03:37.8]} 27. d4 {[%clk 0:01:49.4]} 27... c4 {[%clk 0:03:31.5]}
28. Qc2 {[%clk 0:01:38.7]} 28... Rb4 {[%clk 0:03:15.3]} 29. Nf3 {[%clk
0:01:33.4]} 29... c3 {[%clk 0:03:05.3]} 30. h4 {[%clk 0:01:15.9]} 30... Nxf4
{[%clk 0:02:58]} 31. g3 {[%clk 0:01:11.3]} 31... Nd5 {[%clk 0:02:54.2]} 32. h5
{[%clk 0:01:08.1]} 32... Rb2 {[%clk 0:02:50.3]} 33. Qd3 {[%clk 0:00:50.4]} 33...
a5 {[%clk 0:02:30.6]} 34. hxg6 {[%clk 0:00:42.9]} 34... hxg6 {[%clk 0:02:29.4]}
35. Ng5 {[%clk 0:00:34.5]} 35... Qe7 {[%clk 0:02:02.6]} 36. Rxc3 {[%clk
0:00:18.6]} 36... Qxg5 {[%clk 0:01:56.6]} 37. Qf3 {[%clk 0:00:07.1]} 37... Nxc3
{[%clk 0:01:52.2]} 38. Qxc3 {[%clk 0:00:05.2]} 38... Rd2 {[%clk 0:01:41.3]} 39.
d5+ {[%clk 0:00:03.7]} 39... e5 {[%clk 0:01:39.3]} 40. Qf3 {[%clk 0:00:00.9]}
0-1

[Event "Live Chess"]
[Site "Chess.com"]
[Date "2023.05.20"]
[Round "-"]
[White "1600x"]
[Black "martynstanley"]
[Result "1-0"]
[WhiteElo "1782"]
[BlackElo "970"]
[TimeControl "300"]
[EndTime "15:40:40 PDT"]
[Termination "1600x won by checkmate"]

1. e4 {[%clk 0:04:57.9]} 1... e6 {[%clk 0:04:59.4]} 2. Nf3 {[%clk 0:04:56.7]}
2... d5 {[%clk 0:04:58.6]} 3. exd5 {[%clk 0:04:53.9]} 3... exd5 {[%clk
0:04:57.8]} 4. Qe2+ {[%clk 0:04:51.5]} 4... Ne7 {[%clk 0:04:56.1]} 5. c3 {[%clk
0:04:49]} 5... c5 {[%clk 0:04:55.2]} 6. b3 {[%clk 0:04:44.4]} 6... Nc6 {[%clk
0:04:54.2]} 7. d4 {[%clk 0:04:41.2]} 7... Qb6 {[%clk 0:04:52.9]} 8. dxc5 {[%clk
0:04:36.8]} 8... Qxc5 {[%clk 0:04:51.8]} 9. Ba3 {[%clk 0:04:33.4]} 9... Qb6
{[%clk 0:04:50.1]} 10. h3 {[%clk 0:04:30.8]} 10... Qc7 {[%clk 0:04:49.1]} 11. h4
{[%clk 0:04:28.1]} 11... b6 {[%clk 0:04:48.3]} 12. h5 {[%clk 0:04:26.5]} 12...
Bb7 {[%clk 0:04:47]} 13. h6 {[%clk 0:04:24.7]} 13... g6 {[%clk 0:04:46]} 14.
Nbd2 {[%clk 0:04:19.3]} 14... O-O-O {[%clk 0:04:45]} 15. Nd4 {[%clk 0:04:15.7]}
15... Nf5 {[%clk 0:04:42.7]} 16. Nb5 {[%clk 0:04:13.6]} 16... Qd7 {[%clk
0:04:40.2]} 17. g4 {[%clk 0:04:11.9]} 17... a6 {[%clk 0:04:38.6]} 18. Bxf8
{[%clk 0:04:09.7]} 18... Rhxf8 {[%clk 0:04:37]} 19. a4 {[%clk 0:04:06.7]} 19...
axb5 {[%clk 0:04:35.5]} 20. axb5 {[%clk 0:04:04.5]} 20... Na5 {[%clk 0:04:34.7]}
21. b4 {[%clk 0:04:02.9]} 21... Nc4 {[%clk 0:04:31.5]} 22. gxf5 {[%clk
0:04:00.7]} 22... Nxd2 {[%clk 0:04:29.7]} 23. Qxd2 {[%clk 0:03:59.1]} 23... d4
{[%clk 0:04:28]} 24. Rh3 {[%clk 0:03:56.3]} 24... dxc3 {[%clk 0:04:26.1]} 25.
Rxc3+ {[%clk 0:03:54.9]} 25... Kb8 {[%clk 0:04:20.8]} 26. Qxd7 {[%clk
0:03:53.1]} 26... Rxd7 {[%clk 0:04:19.6]} 27. Bh3 {[%clk 0:03:50.1]} 27... Rfd8
{[%clk 0:04:16]} 28. f6 {[%clk 0:03:48.3]} 28... Rd5 {[%clk 0:04:11.2]} 29. Bf1
{[%clk 0:03:44]} 29... Re5+ {[%clk 0:04:09.7]} 30. Re3 {[%clk 0:03:38.1]} 30...
Rxe3+ {[%clk 0:04:04.4]} 31. fxe3 {[%clk 0:03:35.8]} 31... Bf3 {[%clk
0:04:00.8]} 32. Bc4 {[%clk 0:03:33.9]} 32... Re8 {[%clk 0:03:58.2]} 33. Kf2
{[%clk 0:03:32]} 33... Bh5 {[%clk 0:03:56.3]} 34. Bxf7 {[%clk 0:03:30]} 34...
Re5 {[%clk 0:03:52.4]} 35. e4 {[%clk 0:03:28.2]} 35... Rxe4 {[%clk 0:03:50.7]}
36. Kg3 {[%clk 0:03:24.8]} 36... Re3+ {[%clk 0:03:48.5]} 37. Kf4 {[%clk
0:03:20.6]} 37... Rb3 {[%clk 0:03:47]} 38. Bxb3 {[%clk 0:03:15.3]} 38... Kb7
{[%clk 0:03:44.5]} 39. f7 {[%clk 0:03:12.8]} 39... g5+ {[%clk 0:03:42.6]} 40.
Kf5 {[%clk 0:03:10.2]} 40... Bxf7 {[%clk 0:03:41.4]} 41. Bxf7 {[%clk 0:03:07.4]}
41... g4 {[%clk 0:03:40.4]} 42. Kxg4 {[%clk 0:03:05.9]} 42... Kc7 {[%clk
0:03:38.3]} 43. Bg8 {[%clk 0:03:03.9]} 43... Kd6 {[%clk 0:03:36.7]} 44. Bxh7
{[%clk 0:03:02.8]} 44... Ke5 {[%clk 0:03:36]} 45. Ra6 {[%clk 0:03:00.1]} 45...
Kd4 {[%clk 0:03:35.3]} 46. Bg6 {[%clk 0:02:58.6]} 46... Kc3 {[%clk 0:03:34.4]}
47. h7 {[%clk 0:02:57.7]} 47... Kxb4 {[%clk 0:03:33.5]} 48. h8=Q {[%clk
0:02:53.3]} 48... Kxb5 {[%clk 0:03:32.7]} 49. Qa8 {[%clk 0:02:50.6]} 49... Kc5
{[%clk 0:03:30.8]} 50. Qc8+ {[%clk 0:02:48.7]} 50... Kb5 {[%clk 0:03:29.6]} 51.
Bd3+ {[%clk 0:02:46.7]} 51... Kb4 {[%clk 0:03:25.7]} 52. Qc4# {[%clk 0:02:43.9]}
1-0

[Event "Live Chess"]
[Site "Chess.com"]
[Date "2023.05.20"]
[Round "-"]
[White "f4nomore"]
[Black "omisoc"]
[Result "0-1"]
[WhiteElo "1426"]
[BlackElo "2149"]
[TimeControl "300"]
[EndTime "15:40:44 PDT"]
[Termination "omisoc won on time"]

1. d4 {[%clk 0:04:58.1]} 1... g6 {[%clk 0:04:57.5]} 2. Bg5 {[%clk 0:04:44.4]}
2... h6 {[%clk 0:04:52.5]} 3. Bh4 {[%clk 0:04:42.6]} 3... c5 {[%clk 0:04:49.7]}
4. dxc5 {[%clk 0:04:40.2]} 4... Na6 {[%clk 0:04:44.4]} 5. Qd4 {[%clk 0:04:33.4]}
5... Rh7 {[%clk 0:04:41.1]} 6. Nf3 {[%clk 0:04:27.6]} 6... Bg7 {[%clk
0:04:31.8]} 7. Qc4 {[%clk 0:04:16.9]} 7... Bxb2 {[%clk 0:04:27.6]} 8. Ne5 {[%clk
0:03:56.9]} 8... Bxa1 {[%clk 0:04:21.2]} 9. Nxg6 {[%clk 0:03:55.1]} 9... Qa5+
{[%clk 0:04:15.2]} 10. c3 {[%clk 0:03:50.1]} 10... Qxc5 {[%clk 0:04:12.5]} 11.
Qxc5 {[%clk 0:03:19.1]} 11... Nxc5 {[%clk 0:04:08.9]} 12. Nf4 {[%clk 0:03:10.4]}
12... b5 {[%clk 0:03:58.9]} 13. e3 {[%clk 0:03:08.7]} 13... b4 {[%clk
0:03:57.6]} 14. Nd5 {[%clk 0:02:51.9]} 14... bxc3 {[%clk 0:03:47.1]} 15. Ndxc3
{[%clk 0:02:45.5]} 15... Rb8 {[%clk 0:03:41.3]} 16. Bc4 {[%clk 0:02:40]} 16...
Ba6 {[%clk 0:03:32]} 17. Bxa6 {[%clk 0:02:34.6]} 17... Nxa6 {[%clk 0:03:28.1]}
18. O-O {[%clk 0:02:32.9]} 18... Bxc3 {[%clk 0:03:22.1]} 19. Nxc3 {[%clk
0:02:30.8]} 19... f6 {[%clk 0:03:17.5]} 20. Nd5 {[%clk 0:02:20.8]} 20... d6
{[%clk 0:03:10.6]} 21. h3 {[%clk 0:02:13.7]} 21... Rb5 {[%clk 0:03:02.9]} 22.
Nc3 {[%clk 0:02:09.9]} 22... Rb2 {[%clk 0:02:56.8]} 23. a4 {[%clk 0:02:06.1]}
23... Nc5 {[%clk 0:02:55.3]} 24. Nb5 {[%clk 0:01:57.1]} 24... a6 {[%clk
0:02:51.5]} 25. Nc7+ {[%clk 0:01:49.5]} 25... Kd7 {[%clk 0:02:50.3]} 26. Nd5
{[%clk 0:01:30.8]} 26... Nxa4 {[%clk 0:02:47.9]} 27. Rc1 {[%clk 0:01:26.6]}
27... Nc5 {[%clk 0:02:46.5]} 28. Ra1 {[%clk 0:01:02.9]} 28... Kc6 {[%clk
0:02:38.4]} 29. Nc3 {[%clk 0:00:56.3]} 29... d5 {[%clk 0:02:31.5]} 30. Na4
{[%clk 0:00:51.6]} 30... Nxa4 {[%clk 0:02:28.4]} 31. Rxa4 {[%clk 0:00:49.2]}
31... Kb5 {[%clk 0:02:27.4]} 32. Rg4 {[%clk 0:00:41.1]} 32... Rh8 {[%clk
0:02:26.4]} 33. e4 {[%clk 0:00:24.7]} 33... d4 {[%clk 0:02:23.9]} 34. Rf4 {[%clk
0:00:13.1]} 34... d3 {[%clk 0:02:21.7]} 35. Rf5+ {[%clk 0:00:11]} 35... Kc4
{[%clk 0:02:20.5]} 0-1